bitfinex/quotes_SOLUSD_20241117
["timestamp","ask_amount","ask_price","bid_price","bid_amount"]
[1731874029057,30.0,236.63,236.58,16.41460054]
[1731874029285,30.0,236.63,236.54,16.41460054]
[1731874029567,30.0,236.63,236.56,4.227]
[1731874029929,16.41460054,236.66,236.58,16.41460054]
[1731874030638,16.41460054,236.66,236.58,20.64130054]
[1731874030949,70.0,236.78,236.53,16.6336]
[1731874030950,16.41460054,236.7,236.64,16.41460054]
[1731874031152,16.41460054,236.72,236.64,16.41460054]
[1731874032241,16.41460054,236.67,236.63,10.565]
[1731874032440,16.41460054,236.71,236.63,26.97960054]
[1731874032660,16.41460054,236.71,236.63,31.20560054]
[1731874032957,16.41460054,236.73,236.63,31.20560054]
[1731874033341,24.027864,236.77,236.63,31.20560054]
[1731874033342,16.41460054,236.71,236.63,31.20560054]
[1731874033549,0.09367462,236.74,236.63,31.20560054]
[1731874033749,16.41460054,236.77,236.69,16.41460054]
[1731874034572,16.41460054,236.79,236.71,16.41460054]
[1731874034869,80.6532,236.9,236.71,16.41460054]
[1731874034870,16.41460054,236.83,236.73,16.41460054]
[1731874035084,0.09367462,236.82,236.73,16.41460054]
[1731874035445,0.09367462,236.82,236.75,16.41460054]
[1731874035972,4.2224,236.84,236.77,16.41460054]
[1731874036271,0.09367462,236.82,236.77,0.0607464]
[1731874036568,0.09367462,236.78,236.77,0.0607464]
[1731874037310,24.12153862,236.78,236.77,0.0607464]
[1731874037662,4.56795462,236.78,236.77,0.0607464]
[1731874038443,28.34483862,236.78,236.77,0.0607464]
[1731874039075,44.75943916,236.78,236.77,0.0607464]
[1731874039443,28.34483862,236.78,236.77,0.0607464]
[1731874039881,44.75943916,236.78,236.77,0.0607464]
[1731874040064,16.41460054,236.67,236.59,10.5665]
[1731874040878,16.63376516,236.72,236.62,16.41460054]
[1731874041091,16.63376516,236.72,236.59,14.7932]
[1731874041092,6.52777889,236.9,236.78,0.1]
[1731874041299,0.1,237.09,236.78,0.1]
[1731874041300,4.2185,237.05,236.89,16.41460054]
[1731874041586,4.2182,237.07,237.0,16.41460054]
[1731874041753,20.63220054,237.1,236.97,4.2198]
[1731874041955,16.41460054,237.17,237.07,16.41460054]
[1731874042187,16.41460054,237.19,237.09,16.41460054]
[1731874042364,70.0,237.25,237.0,16.41460054]
[1731874042365,16.41460054,237.23,237.13,16.41460054]
[1731874042679,0.09038,237.26,237.17,16.41460054]
[1731874042852,0.09038,237.19,236.98,20.0]
[1731874043058,0.09038,237.15,236.91,6.3233]
[1731874043276,0.09038,237.15,236.92,0.1]
[1731874043476,0.09367462,237.16,236.91,6.5233]
[1731874043685,0.09038,237.18,236.94,0.1]
[1731874043867,20.63090054,237.17,237.08,16.41460054]
[1731874044067,16.50498054,237.15,237.06,16.41460054]
[1731874044270,0.09367462,237.12,237.07,26.66052679]
[1731874044570,0.1,237.14,237.07,26.66052679]
[1731874044801,0.09038,237.13,237.07,26.66052679]
[1731874045365,0.21916462,237.1,237.07,26.66052679]
[1731874046492,0.34465462,237.1,237.09,26.66052679]
[1731874049387,0.1,237.18,237.09,26.66052679]
[1731874049595,4.216,237.19,237.16,26.66052679]
[1731874049767,30.0,237.17,237.16,26.66052679]
[1731874050092,4.30638,237.19,237.16,26.66052679]
[1731874050269,0.09367462,237.18,237.16,26.66052679]
[1731874050593,0.09038,237.16,237.14,26.66052679]
[1731874050789,0.09038,237.14,237.02,10.5472]
[1731874050976,30.0,237.18,237.13,26.66052679]
[1731874051157,30.0,237.18,237.02,14.7662]
[1731874051158,0.09367462,237.17,237.02,14.7662]
[1731874051361,0.09367462,237.17,237.15,26.66052679]
[1731874051580,0.09367462,237.17,236.97,0.1]
[1731874051785,4.2153,237.23,237.16,26.66052679]
[1731874051956,4.2153,237.23,237.19,26.66052679]
[1731874051957,23.776884,237.22,237.19,26.66052679]
[1731874052165,4.2149,237.26,237.21,26.66052679]
[1731874052488,4.2149,237.26,237.24,26.66052679]
[1731874052989,30.0,237.25,237.24,26.66052679]
[1731874053164,30.0,237.25,237.06,0.1]
[1731874053365,4.30877462,237.24,237.23,26.66052679]
[1731874053781,34.2151,237.24,237.21,26.66052679]
[1731874053964,24.027864,237.23,237.12,10.5428]
[1731874054165,0.09367462,237.22,237.17,26.66052679]
[1731874054887,0.09367462,237.22,237.07,21.0868]
[1731874055096,0.09367462,237.2,237.17,26.66052679]
[1731874055401,0.09367462,237.18,237.17,26.66052679]
[1731874057970,30.0,237.22,237.17,26.66052679]
[1731874058181,30.0,237.22,237.21,26.66052679]
[1731874058488,30.09367462,237.22,237.21,26.66052679]
[1731874059072,4.2146,237.27,237.21,26.66052679]
[1731874059270,4.2146,237.27,237.24,26.66052679]
[1731874059500,30.09367462,237.25,237.24,26.66052679]
[1731874059812,30.0,237.25,237.24,26.66052679]
[1731874060885,4.214,237.31,237.24,26.66052679]
[1731874061100,4.2124,237.39,237.28,26.66052679]
[1731874061408,4.2124,237.39,237.3,26.66052679]
[1731874061563,0.09038,237.38,237.3,26.66052679]
[1731874061900,4.2128,237.37,237.3,26.66052679]
[1731874062566,0.09367462,237.36,237.28,26.66052679]
[1731874062876,0.21916462,237.36,237.28,26.66052679]
[1731874063182,26.87969141,237.36,237.28,26.66052679]
[1731874063382,26.75420141,237.36,237.26,32.76402679]
[1731874063564,26.75420141,237.36,237.26,36.97862679]
[1731874063767,0.09367462,237.33,237.26,32.76402679]
[1731874063974,0.09367462,237.31,237.26,6.1035]
[1731874065879,16.37633587,237.35,237.26,22.47983587]
[1731874066067,0.09367462,237.34,237.26,22.47983587]
[1731874066263,0.09367462,237.3,237.22,16.37633587]
[1731874066492,0.34465462,237.3,237.22,16.37633587]
[1731874066695,0.09367462,237.3,237.22,16.37633587]
[1731874067191,0.09367462,237.3,237.24,16.37633587]
[1731874068190,0.09367462,237.3,237.22,16.37633587]
[1731874068368,0.34465462,237.3,237.22,16.37633587]
[1731874069185,0.09367462,237.28,237.2,16.37633587]
[1731874069490,16.37633587,237.29,237.2,16.37633587]
[1731874069679,16.37633587,237.35,237.26,16.37633587]
[1731874070192,4.213,237.36,237.28,16.37633587]
[1731874070574,4.213,237.36,237.26,16.37633587]
[1731874070575,16.37633587,237.35,237.26,16.37633587]
[1731874070983,0.09367462,237.34,237.26,16.37633587]
[1731874071387,0.09367462,237.32,237.26,16.37633587]
[1731874071587,4.2135,237.33,237.26,16.37633587]
[1731874072096,0.09367462,237.32,237.26,16.37633587]
[1731874072279,4.2135,237.33,237.26,16.37633587]
[1731874072481,0.09367462,237.32,237.26,16.37633587]
[1731874073586,4.2138,237.32,237.24,16.37633587]
[1731874073791,0.09367462,237.29,237.19,6.118]
[1731874073982,0.09367462,237.26,237.19,22.49433587]
[1731874074597,0.09367462,237.26,237.15,16.37633587]
[1731874074598,0.34465462,237.24,237.15,16.37633587]
[1731874074823,16.37633587,237.23,237.15,16.37633587]
[1731874075005,16.37633587,237.27,237.19,16.37633587]
[1731874075177,0.09367462,237.26,237.19,16.37633587]
[1731874075381,16.37633587,237.29,237.21,16.37633587]
[1731874075602,0.09367462,237.27,237.21,16.37633587]
[1731874076204,0.09367462,237.27,237.19,16.37633587]
[1731874076205,0.34465462,237.27,237.19,16.37633587]
[1731874076379,16.72099049,237.27,237.19,16.37633587]
[1731874076580,0.34465462,237.24,237.17,16.37633587]
[1731874077110,0.09367462,237.22,237.15,16.37633587]
[1731874077908,0.09367462,237.2,237.15,16.37633587]
[1731874078406,16.37633587,237.23,237.12,6.4315]
[1731874078407,4.2147,237.26,237.19,16.37633587]
[1731874078582,4.2147,237.26,237.21,16.37633587]
[1731874079282,10.5339,237.33,237.23,16.37633587]
[1731874079283,23.776884,237.31,237.23,16.37633587]
[1731874079590,4.2137,237.32,237.28,16.37633587]
[1731874079783,4.2131,237.35,237.28,16.37633587]
[1731874080486,0.09367462,237.34,237.28,16.37633587]
[1731874080681,4.2131,237.35,237.28,16.37633587]
[1731874081604,4.2135,237.33,237.28,16.37633587]
[1731874081981,4.2135,237.33,237.26,16.37633587]
[1731874085208,16.37633587,237.3,237.22,16.37633587]
[1731874085689,16.47001049,237.32,237.24,16.37633587]
[1731874086295,4.2138,237.31,237.24,16.37633587]
[1731874086603,0.09367462,237.3,237.22,16.37633587]
[1731874086782,0.09367462,237.27,237.2,16.37633587]
[1731874087184,0.09367462,237.27,237.18,16.37633587]
[1731874087909,16.37633587,237.26,237.18,16.37633587]
[1731874088513,0.09367462,237.25,237.18,16.37633587]
[1731874088801,16.37633587,237.24,237.16,16.37633587]
[1731874090087,20.59143587,237.24,237.16,20.59273587]
[1731874090304,4.2151,237.24,237.18,16.37633587]
[1731874091916,0.09367462,237.24,237.18,16.37633587]
[1731874093607,4.2144,237.28,237.23,16.37633587]
[1731874093810,4.2144,237.28,237.25,16.37633587]
[1731874094016,16.37633587,237.32,237.25,16.37633587]
[1731874094221,4.30747462,237.31,237.25,16.37633587]
[1731874094511,4.30747462,237.31,237.24,16.37633587]
[1731874094697,4.2138,237.31,237.25,16.37633587]
[1731874095310,4.2138,237.31,237.24,16.37633587]
[1731874095609,0.09367462,237.3,237.24,16.37633587]
[1731874096327,4.43296462,237.31,237.24,16.37633587]
[1731874098014,16.37633587,237.3,237.22,16.37633587]
[1731874098503,0.09367462,237.29,237.22,16.37633587]
[1731874098718,16.37633587,237.26,237.19,16.37633587]
[1731874099791,4.2149,237.25,237.19,16.37633587]
[1731874101896,4.2153,237.23,237.19,16.37633587]
[1731874102810,4.2153,237.23,237.17,16.37633587]
[1731874103811,4.2153,237.23,237.16,16.37633587]
[1731874105117,0.09367462,237.16,237.07,16.37633587]
[1731874105319,0.09367462,237.16,237.1,16.37633587]
[1731874105611,0.09367462,237.16,237.09,16.37633587]
[1731874105813,16.47001049,237.16,237.09,16.37633587]
[1731874106118,4.2167,237.15,237.09,16.37633587]
[1731874106311,4.2167,237.15,237.08,16.37633587]
[1731874106487,0.09367462,237.14,237.07,16.37633587]
[1731874106797,16.37633587,237.21,237.13,16.37633587]
[1731874107002,0.25098,237.21,237.15,16.37633587]
[1731874107202,4.2154,237.22,237.16,16.37633587]
[1731874107406,4.2154,237.22,237.17,16.37633587]
[1731874107917,4.2154,237.22,237.16,16.37633587]
[1731874109220,0.09367462,237.21,237.15,16.37633587]
[1731874109517,4.2154,237.22,237.15,16.37633587]
[1731874110289,4.2154,237.22,237.17,16.37633587]
[1731874110592,4.2154,237.22,237.15,16.37633587]
[1731874111916,0.09367462,237.21,237.13,16.37633587]
[1731874112235,0.09367462,237.17,237.09,16.37633587]
[1731874112694,0.09367462,237.15,237.09,16.37633587]
[1731874112893,0.09367462,237.15,237.04,6.5259]
[1731874112894,4.2169,237.14,237.07,16.37633587]
[1731874113320,16.47001049,237.13,237.06,16.37633587]
[1731874113529,16.37633587,237.12,237.05,16.37633587]
[1731874113703,16.37633587,237.11,237.03,16.37633587]
[1731874114100,0.09367462,237.1,237.04,16.37633587]
[1731874114420,16.59550049,237.1,237.02,16.37633587]
[1731874114804,16.59550049,237.1,236.99,16.37633587]
[1731874114805,4.31197462,237.06,236.99,16.37633587]
[1731874115407,4.31197462,237.06,236.98,16.37633587]
[1731874115408,0.09367462,237.04,236.98,16.37633587]
[1731874116512,4.2188,237.03,236.98,16.37633587]
[1731874117131,0.09367462,237.02,236.97,16.37633587]
[1731874117308,0.09367462,237.02,236.95,16.37633587]
[1731874117706,0.09367462,237.02,236.97,16.37633587]
[1731874118207,20.59373587,237.11,237.01,16.37633587]
[1731874118403,20.59373587,237.11,237.04,16.37633587]
[1731874118722,0.09367462,237.1,237.03,16.37633587]
[1731874118929,16.47001049,237.1,237.02,16.37633587]
[1731874119102,0.09367462,237.08,237.01,16.37633587]
[1731874119708,0.34465462,237.08,237.01,16.37633587]
[1731874119913,0.34465462,237.08,237.02,16.37633587]
[1731874120207,16.376336,237.12,237.07,16.37633587]
[1731874120523,6.55356767,237.31,237.12,20.1]
[1731874120725,6.55356767,237.31,237.26,16.37633587]
[1731874120933,32.75267187,237.36,237.26,16.37633587]
[1731874121303,0.09367462,237.35,237.26,16.37633587]
[1731874121607,0.09367462,237.33,237.26,16.37633587]
[1731874121822,4.2133,237.34,237.26,16.37633587]
[1731874122504,0.09367462,237.33,237.26,16.37633587]
[1731874122726,16.37633587,237.36,237.26,16.37633587]
[1731874122935,4.213,237.36,237.28,16.37633587]
[1731874123309,0.09367462,237.35,237.28,16.37633587]
[1731874123510,20.58933587,237.36,237.26,16.37633587]
[1731874124024,24.027864,237.35,237.26,16.37633587]
[1731874124331,0.12549,237.33,237.26,16.37633587]
[1731874124533,0.09367462,237.29,237.2,16.37633587]
[1731874124708,0.09367462,237.25,237.18,16.37633587]
[1731874125604,0.09367462,237.23,237.16,16.37633587]
[1731874125824,16.37633587,237.2,237.12,20.59343587]
[1731874126026,0.09367462,237.19,237.12,16.37633587]
[1731874126614,30.0,237.19,237.14,16.37633587]
[1731874127633,0.09367462,237.18,237.14,16.37633587]
[1731874127809,30.09367462,237.18,237.14,16.37633587]
[1731874129028,30.09367462,237.18,237.12,16.37633587]
[1731874131827,30.09367462,237.18,237.13,16.37633587]
[1731874133437,30.09367462,237.18,237.14,16.37633587]
[1731874133614,30.09367462,237.18,237.13,16.37633587]
[1731874137426,30.09367462,237.18,237.14,16.37633587]
[1731874137728,30.09367462,237.18,237.13,16.37633587]
[1731874138521,4.2143,237.29,237.17,16.37633587]
[1731874138725,4.2143,237.29,237.25,16.37633587]
[1731874138929,30.0,237.26,237.25,16.37633587]
[1731874139343,30.09367462,237.26,237.25,16.37633587]
[1731874139712,0.12549,237.25,237.23,16.37633587]
[1731874139912,30.12549,237.25,237.21,16.37633587]
[1731874140124,16.37633587,237.3,237.23,16.37633587]
[1731874140344,16.37633587,237.36,237.29,16.37633587]
[1731874140533,4.2133,237.35,237.31,16.37633587]
[1731874141039,30.0,237.32,237.31,16.37633587]
[1731874141416,0.09367462,237.31,237.27,16.37633587]
[1731874141640,0.09367462,237.31,237.23,16.37633587]
[1731874141830,0.09367462,237.27,237.21,16.37633587]
[1731874142031,0.09367462,237.27,237.19,31.13213587]
[1731874142250,0.21916462,237.27,237.21,16.37633587]
[1731874142916,30.21916462,237.27,237.21,16.37633587]
[1731874143838,30.21916462,237.27,237.23,16.37633587]
[1731874144033,30.0,237.27,237.25,16.37633587]
[1731874145442,0.09367462,237.26,237.23,16.37633587]
[1731874145919,30.09367462,237.26,237.23,16.37633587]
[1731874146352,30.09367462,237.26,237.21,16.37633587]
[1731874146525,0.09367462,237.24,237.21,16.37633587]
[1731874147047,0.09367462,237.24,237.18,16.37633587]
[1731874147622,0.09367462,237.24,237.2,16.37633587]
[1731874147845,0.09367462,237.22,237.2,16.37633587]
[1731874148950,30.09367462,237.22,237.2,16.37633587]
[1731874149442,0.09367462,237.2,237.15,16.37633587]
[1731874149818,0.09367462,237.2,237.13,16.37633587]
[1731874150020,0.21916462,237.18,237.13,16.37633587]
[1731874150220,0.21916462,237.18,237.14,16.37633587]
[1731874150936,30.21916462,237.18,237.14,16.37633587]
[1731874151136,34.43536462,237.18,237.14,16.37633587]
[1731874151344,34.43536462,237.18,237.11,16.37633587]
[1731874152137,0.34465462,237.14,237.08,16.37633587]
[1731874152528,30.34465462,237.14,237.08,16.37633587]
[1731874153252,0.21916462,237.12,237.07,16.37633587]
[1731874153456,30.21916462,237.12,237.07,16.37633587]
[1731874153934,30.21916462,237.12,237.03,16.4208]
[1731874154258,0.09367462,237.05,237.01,16.37633587]
[1731874154432,0.09367462,237.05,237.02,16.37633587]
[1731874155752,30.09367462,237.05,237.02,16.37633587]
[1731874156756,0.09367462,237.03,237.01,16.37633587]
[1731874156930,0.09367462,237.03,236.97,14.7697]
[1731874156931,0.09367462,237.03,236.99,16.37633587]
[1731874157130,0.09367462,237.03,237.0,16.37633587]
[1731874157377,0.12549,237.04,237.02,16.37633587]
[1731874157627,30.0,237.05,237.03,16.37633587]
[1731874157843,0.09367462,237.05,237.04,16.37633587]
[1731874158036,16.37633587,237.12,237.04,16.37633587]
[1731874158037,4.2166,237.16,237.04,16.37633587]
[1731874158240,16.37633587,237.24,237.05,16.4208]
[1731874158539,4.2152,237.24,237.19,16.37633587]
[1731874158851,5.13993059,237.23,237.11,6.4698]
[1731874159158,5.13993059,237.23,237.05,22.8906]
[1731874159335,0.09367462,237.19,237.12,16.37633587]
[1731874159534,0.09367462,237.15,237.08,16.37633587]
[1731874159735,0.09367462,237.15,237.1,16.37633587]
[1731874159949,0.09367462,237.15,237.12,16.37633587]
[1731874160257,24.12153862,237.19,237.12,16.37633587]
[1731874160844,0.34465462,237.17,237.12,16.37633587]
[1731874162032,4.56115462,237.17,237.12,16.37633587]
[1731874162543,0.34465462,237.12,237.01,10.548]
[1731874162858,0.34465462,237.12,237.03,16.37633587]
[1731874162859,0.21916462,237.1,237.03,16.37633587]
[1731874163038,0.09367462,237.08,237.03,16.37633587]
[1731874163232,0.21916462,237.08,237.01,26.92433587]
[1731874163650,0.09367462,237.06,237.01,26.92433587]
[1731874163852,0.21916462,237.06,237.01,26.92433587]
[1731874164162,0.25098,237.13,237.05,16.37633587]
[1731874164548,23.776884,237.14,237.05,16.37633587]
[1731874164549,0.09367462,237.1,237.05,16.37633587]
[1731874164761,0.09367462,237.1,237.03,10.5471]
[1731874164762,0.09367462,237.1,237.03,26.92343587]
[1731874165257,0.09367462,237.1,237.05,16.37633587]
[1731874165765,0.09367462,237.08,237.03,16.37633587]
[1731874165958,0.09367462,237.06,237.01,16.37633587]
[1731874167159,0.09367462,237.04,236.99,16.37633587]
[1731874167559,24.12153862,236.99,236.86,6.1514]
[1731874167740,0.09367462,236.94,236.87,16.37633587]
[1731874168256,0.34465462,236.94,236.87,16.37633587]
[1731874168462,0.09367462,236.9,236.82,10.5564]
[1731874168644,16.37633587,236.93,236.84,20.59843587]
[1731874168851,0.09367462,236.92,236.84,20.59843587]
[1731874169044,0.09367462,236.92,236.86,16.37633587]
[1731874169736,4.56555462,236.92,236.86,16.37633587]
[1731874169938,0.09367462,236.92,236.86,16.37633587]
[1731874170942,4.43996462,236.92,236.86,16.37633587]
[1731874171139,0.21916462,236.92,236.86,16.37633587]
[1731874171739,0.21916462,236.9,236.86,16.37633587]
[1731874172449,0.21916462,236.9,236.84,16.37633587]
[1731874173268,4.44036462,236.9,236.84,16.37633587]
[1731874173438,0.21916462,236.9,236.84,20.59843587]
[1731874173868,0.21916462,236.9,236.84,16.37633587]
[1731874178045,0.09367462,236.88,236.84,16.37633587]
[1731874178253,0.21916462,236.88,236.84,16.37633587]
[1731874179891,0.21916462,236.84,236.78,16.37633587]
[1731874181841,0.21916462,236.82,236.76,16.37633587]
[1731874182368,0.21916462,236.8,236.74,16.37633587]
[1731874182543,0.21916462,236.8,236.71,16.37633587]
[1731874182544,0.21916462,236.76,236.71,16.37633587]
[1731874183068,0.21916462,236.74,236.71,16.37633587]
[1731874183272,0.21916462,236.74,236.69,16.37633587]
[1731874184372,0.21916462,236.74,236.68,10.28382134]
[1731874184678,14.50752134,236.76,236.68,10.28382134]
[1731874184679,0.21916462,236.72,236.68,10.28382134]
[1731874185880,4.44356462,236.72,236.68,10.28382134]
[1731874186055,4.44356462,236.72,236.67,10.28382134]
[1731874186365,0.21916462,236.7,236.65,16.45917724]
[1731874186678,16.45917724,236.75,236.68,16.45917724]
[1731874186986,4.2227,236.81,236.64,16.55917724]
[1731874187158,0.09367462,236.8,236.65,14.7897]
[1731874187366,0.09367462,236.8,236.75,16.45917724]
[1731874188389,0.21916462,236.78,236.76,16.45917724]
[1731874189660,0.21916462,236.78,236.75,16.45917724]
[1731874190481,0.21916462,236.78,236.76,16.45917724]
[1731874190661,16.45917724,236.85,236.77,16.45917724]
[1731874191069,0.09367462,236.84,236.77,16.45917724]
[1731874191254,16.45917724,236.85,236.77,16.45917724]
[1731874191461,0.09367462,236.82,236.75,16.45917724]
[1731874191764,0.34465462,236.8,236.75,16.45917724]
[1731874192586,0.34465462,236.8,236.71,4.2244]
[1731874192587,0.34465462,236.78,236.71,16.45917724]
[1731874193970,0.21916462,236.76,236.71,16.45917724]
[1731874194762,0.21916462,236.76,236.68,4.225]
[1731874194763,0.09367462,236.71,236.63,4.2258]
[1731874194968,0.12549,236.76,236.7,16.45917724]
[1731874195280,0.12549,236.76,236.72,16.45917724]
[1731874195785,0.09367462,236.75,236.72,16.45917724]
[1731874199088,4.31757462,236.75,236.7,16.45917724]
[1731874200682,4.31757462,236.75,236.66,16.45917724]
[1731874200683,0.09367462,236.73,236.66,16.45917724]
[1731874201159,0.09367462,236.73,236.64,16.45917724]
[1731874201361,0.09367462,236.71,236.64,16.45917724]
[1731874201560,0.34465462,236.71,236.64,16.45917724]
[1731874202416,0.09367462,236.69,236.64,16.45917724]
[1731874202565,0.34465462,236.69,236.62,16.45917724]
[1731874203492,0.34465462,236.69,236.6,16.45917724]
[1731874203675,0.34465462,236.69,236.58,0.464792]
[1731874203676,0.34465462,236.69,236.62,16.45917724]
[1731874203998,0.12549,236.72,236.67,16.45917724]
[1731874204190,0.09367462,236.71,236.67,16.45917724]
[1731874204502,0.09367462,236.69,236.65,16.45917724]
[1731874205293,0.21916462,236.67,236.63,16.45917724]
[1731874205586,16.45917724,236.7,236.61,16.45917724]
[1731874205799,0.25098,236.69,236.61,16.45917724]
[1731874206168,0.21916462,236.68,236.61,16.45917724]
[1731874206471,0.12549,236.65,236.58,0.464792]
[1731874207670,20.68437724,236.68,236.59,16.45917724]
[1731874207864,16.45917724,236.7,236.62,16.45917724]
[1731874208068,20.68357724,236.72,236.64,16.45917724]
[1731874208377,0.09367462,236.71,236.64,10.28706699]
[1731874208571,0.09367462,236.71,236.58,15.258692]
[1731874208572,0.09367462,236.69,236.62,10.28706699]
[1731874208779,0.09367462,236.69,236.6,10.28706699]
[1731874208992,0.21916462,236.69,236.6,10.28706699]
[1731874209182,0.09367462,236.67,236.6,10.28706699]
[1731874209369,0.21916462,236.67,236.6,10.28706699]
[1731874209871,0.09367462,236.65,236.6,10.28706699]
[1731874210393,4.2254,236.66,236.6,10.28706699]
[1731874211395,4.44476462,236.65,236.58,10.75185899]
[1731874211592,0.09367462,236.63,236.6,10.28706699]
[1731874211963,0.09367462,236.61,236.58,10.75185899]
[1731874212772,0.09367462,236.61,236.58,0.464792]
[1731874213588,0.09367462,236.59,236.58,0.464792]
[1731874216490,0.34465462,236.59,236.58,0.464792]
[1731874216819,10.28706699,236.68,236.58,10.75185899]
[1731874217104,4.2255,236.66,236.58,4.691592]
[1731874217277,4.2255,236.66,236.59,10.28706699]
[1731874217474,4.2255,236.66,236.58,4.691592]
[1731874217475,4.2255,236.66,236.61,10.28706699]
[1731874217796,4.2255,236.66,236.59,10.28706699]
[1731874217999,0.09367462,236.65,236.59,10.28706699]
[1731874218204,0.09367462,236.65,236.58,0.464792]
[1731874218581,0.09367462,236.63,236.58,0.464792]
[1731874218903,0.09367462,236.61,236.58,0.464792]
[1731874219271,0.12549,236.62,236.58,0.464792]
[1731874219497,0.12549,236.63,236.59,10.28706699]
[1731874219913,0.09367462,236.62,236.58,0.464792]
[1731874220071,0.21916462,236.62,236.58,0.464792]
[1731874220275,0.09367462,236.62,236.58,0.464792]
[1731874220477,0.21916462,236.62,236.58,0.464792]
[1731874220882,0.12549,236.61,236.58,0.464792]
[1731874221213,0.21916462,236.6,236.58,0.464792]
[1731874222398,28.34823862,236.59,236.58,0.464792]
[1731874222719,4.57135462,236.59,236.58,0.464792]
[1731874223404,58.34823862,236.59,236.58,0.464792]
[1731874224421,28.34823862,236.59,236.58,0.464792]
[1731874224995,58.34823862,236.59,236.58,0.464792]
[1731874225202,74.41153862,236.59,236.58,0.464792]
[1731874225620,0.09367462,236.56,236.43,14.803]
[1731874225819,10.28706699,236.54,236.45,10.28706699]
[1731874226036,0.21916462,236.52,236.45,10.28706699]
[1731874226524,0.21916462,236.5,236.45,10.28706699]
[1731874226835,4.2281,236.52,236.45,10.28706699]
[1731874227007,0.34465462,236.51,236.45,10.28706699]
[1731874228823,4.2278,236.53,236.45,10.28706699]
[1731874229027,22.5449,236.65,236.52,10.28706699]
[1731874229200,10.28706699,236.63,236.55,10.28706699]
[1731874229526,14.51276699,236.65,236.55,10.28706699]
[1731874229912,0.09367462,236.64,236.57,10.28706699]
[1731874230221,10.28706699,236.69,236.61,10.28706699]
[1731874230430,4.2247,236.7,236.63,10.28706699]
[1731874230817,6.4816,236.77,236.65,10.28706699]
[1731874231001,10.28706699,236.72,236.65,10.28706699]
[1731874231210,0.09367462,236.71,236.65,10.28706699]
[1731874231425,0.09367462,236.69,236.61,10.28706699]
[1731874231602,10.28706699,236.72,236.63,10.28706699]
[1731874232303,0.09367462,236.71,236.63,10.28706699]
[1731874232929,0.34465462,236.69,236.63,10.28706699]
[1731874233123,24.12153862,236.69,236.61,10.28706699]
[1731874233338,0.34465462,236.69,236.61,10.28706699]
[1731874233826,0.21916462,236.64,236.58,10.28706699]
[1731874234000,0.21916462,236.64,236.6,10.28706699]
[1731874234198,0.12549,236.66,236.6,10.28706699]
[1731874234407,0.34465462,236.66,236.6,10.28706699]
[1731874234726,0.34465462,236.66,236.62,10.28706699]
[1731874235403,0.34465462,236.66,236.6,10.28706699]
[1731874235603,10.28706699,236.65,236.58,10.28706699]
[1731874235824,0.09367462,236.62,236.55,20.85556699]
[1731874236025,0.34465462,236.62,236.55,10.28706699]
[1731874237247,0.34465462,236.6,236.55,10.28706699]
[1731874239136,0.34465462,236.6,236.5,10.5706]
[1731874239137,0.34465462,236.58,236.51,10.28706699]
[1731874239605,10.63172161,236.58,236.51,10.28706699]
[1731874240331,10.63172161,236.58,236.5,10.5706]
[1731874240535,10.63172161,236.58,236.5,14.7989]
[1731874240920,4.57205462,236.55,236.47,14.51576699]
[1731874241131,4.57205462,236.55,236.49,10.28706699]
[1731874242036,4.57205462,236.55,236.45,21.1461]
[1731874242037,10.28706699,236.52,236.45,10.28706699]
[1731874242221,0.12549,236.5,236.45,10.28706699]
[1731874242419,0.09367462,236.49,236.44,6.0472]
[1731874242623,24.12153862,236.45,236.36,10.5767]
[1731874242824,0.1,236.53,236.36,10.5767]
[1731874242825,4.2274,236.55,236.44,10.28706699]
[1731874243020,14.51286699,236.64,236.54,10.28706699]
[1731874243211,30.0,236.55,236.49,0.1]
[1731874243418,4.2258,236.64,236.51,0.1]
[1731874243723,4.2258,236.64,236.48,0.1]
[1731874244315,0.09367462,236.63,236.48,0.1]
[1731874244509,0.09367462,236.63,236.56,10.28706699]
[1731874244727,0.12549,236.62,236.56,10.28706699]
[1731874246022,0.12549,236.62,236.49,14.7997]
[1731874246023,0.12549,236.6,236.54,10.28706699]
[1731874246429,0.21916462,236.59,236.54,10.28706699]
[1731874247409,0.12549,236.58,236.54,10.28706699]
[1731874247720,0.12549,236.58,236.52,10.28706699]
[1731874247721,0.21916462,236.57,236.52,10.28706699]
[1731874248921,0.21916462,236.54,236.5,10.28706699]
[1731874249527,0.21916462,236.55,236.5,10.28706699]
[1731874249736,0.12549,236.54,236.5,10.28706699]
[1731874251524,0.12549,236.54,236.43,10.5736]
[1731874251525,0.12549,236.58,236.52,10.28706699]
[1731874251738,28.003284,236.61,236.54,10.28706699]
[1731874252217,0.09367462,236.6,236.52,10.28706699]
[1731874252651,4.32037462,236.6,236.52,10.28706699]